Cogmind - Beta 11 @@@ ROGUE MODE // 2022.04.19 @ 18:10:13 Player: Momo Result: Destroyed by DAS Turret with DAS Cannon Performance ------------- Evolutions (0) 0 Regions Visited (3) 600 Robots Destroyed (7) 35 Value Destroyed (118) 118 Prototype IDs (4) 80 Alien Tech Used (0) 0 Bonus (268) 268 TOTAL SCORE: 1101 Bonus ------- Follower Combat Kills 7 Aligned with FarCom 300 Friendly Fire -39 Cogmind --------- Core Integrity 0/250 Matter 59/300 Energy 99/100 System Corruption 0% Temperature Cool (0) Movement Core (100) Ox1 Location -10/Exiles Parts ------- > --- POWER (1) -------- (None) > --- PROPULSION (2) --- (None) > --- UTILITY (2) ------ Small Storage Unit > --- WEAPON (2) ------- Small Laser > --- INVENTORY (8) ---- Lightpack 2.0 PSU Rigger Peak State ------------ > --- POWER ------------ Ion Engine > --- PROPULSION ------- Light Treads Light Treads > --- UTILITY ---------- Small Storage Unit PSU Rigger > --- WEAPON ----------- Assault Rifle Assault Rifle > --- INVENTORY -------- Light Treads Lightpack 2.0 Light Armor Plating Assault Rifle Assault Rifle [Rating: 17] Favorites ----------- Power Ion Engine Engine Ion Engine Propulsion Light Treads Treads Light Treads Utility Small Storage Unit Device PSU Rigger Storage Small Storage Unit Protection Light Armor Plating Weapon Assault Rifle Energy Gun Small Laser Ballistic Gun Assault Rifle Build | -11 -10 -10 -10 ------- Run | Scr Mat Min Exi Slots Evolved . | . . . . Power . | . . . . Propulsion . | . . . . Utility . | . . . . Weapon . | . . . . Parts Attached 14 | 5 3 . 6 Power 1 | 1 . . . Engine 1 | 1 . . . Core . | . . . . Reactor . | . . . . Propulsion 3 | 2 . . 1 Treads 3 | 2 . . 1 Leg . | . . . . Wheel . | . . . . Hover . | . . . . Flight . | . . . . Utility 4 | 1 1 . 2 Device 1 | . . . 1 Storage 1 | 1 . . . Processor . | . . . . Hackware . | . . . . Protection 2 | . 1 . 1 Artifact . | . . . . Weapon 6 | 1 2 . 3 Energy Gun 2 | . 1 . 1 Energy Cannon . | . . . . Ballistic Gun 4 | 1 1 . 2 Ballistic Cannon . | . . . . Launcher . | . . . . Special Weapon . | . . . . Impact Weapon . | . . . . Slashing Weapon . | . . . . Piercing Weapon . | . . . . Special Melee Weapon . | . . . . Unidentified Prototypes 1 | . . . 1 Parts Lost 9 | . . . 9 Power 1 | . . . 1 Propulsion 3 | . . . 3 Utility 1 | . . . 1 Weapon 4 | . . . 4 Highest Loss Streak 9 | . . . 9 To Critical Strikes 2 | . . . 2 Average Slot Usage (%) 95 | . 96 100 94 Engine 13 | . 14 14 13 Treads 26 | . 28 28 25 Device 2 | . . . 3 Storage 14 | . 14 14 14 Protection 10 | . 12 14 9 Energy Gun 1 | . 7 . . Ballistic Gun 25 | . 19 28 25 Naked Turns . | . . . . Heaviest Build 17 | 12 17 17 17 Greatest Support 40 | 40 40 40 40 Greatest Overweight (x) 2 | . . . 2 Average Overweight (x) . | . . . . Largest Inventory Capacity 8 | 8 8 8 8 Average Capacity 7 | 6 8 8 8 Most Carried 8 | . 7 8 8 Average Carried 5 | . 2 7 6 Final Capacity 8 | 8 8 8 8 Final Carried 8 | . 7 8 4 Class Distribution -------------------- 100% | Mutant Dominant Class ---------------- Mutant | -10/Materials Mutant | -10/Mines Mutant | -10/Exiles Resources | -11 -10 -10 -10 ----------- Run | Scr Mat Min Exi Matter Collected 289 | 69 51 69 100 Remotely . | . . . . Salvage Created 176 | . 137 39 . Parts 14 | . 11 3 . Haulers Intercepted . | . . . . Recyclers Shooed . | . . . . Parts Field Recycled . | . . . . Retrieved Matter . | . . . . Parts Self-Destructed . | . . . . Prevented . | . . . . Kills | -11 -10 -10 -10 ------- Run | Scr Mat Min Exi Combat Hostiles Destroyed 7 | . 5 2 . Guns 7 | . 5 2 . Classes Destroyed 2 | . 2 . . Swarmer 5 | . 3 2 . Grunt 2 | . 2 . . Best Kill Streak 3 | . 3 2 . Combat Bots Only 3 | . 3 2 . Max Kills in Single Turn 2 | . 2 1 . Gunslinging 1 | . 1 . . Exploded . | . . . . Melee . | . . . . Uniques/NPCs Destroyed 2 | . . . 2 EX-BIN (-10/Exiles) EX-HEX (-10/Exiles) Combat | -11 -10 -10 -10 -------- Run | Scr Mat Min Exi Damage Taken 1284 | . 199 151 934 Core 303 | . 39 8 256 Absorbed by Shields . | . . . . Core Remaining (%) 100 | 100 . . . Volleys Fired 53 | . 11 10 32 Largest 2 | . 2 2 2 Hottest 60 | . 60 40 40 Shots Fired 82 | . 22 20 40 Gun 82 | . 22 20 40 Cannon . | . . . . Launcher . | . . . . Special . | . . . . Kinetic 75 | . 15 20 40 Thermal 7 | . 7 . . Explosive . | . . . . Electromagnetic . | . . . . Robot Hit Streak 8 | . 7 6 8 Robot Miss Streak 3 | . 2 2 3 Penetration Max . | . . . . Secondary Targets 2 | . 1 1 . Max Gunslinging Chain 1 | . 1 1 . Shots Hit Robots 52 | . 14 12 26 Core Hits 11 | . 6 2 3 Critical Kills . | . . . . Critical Parts Destroyed . | . . . . Critical Strikes . | . . . . Melee Attacks . | . . . . Impact . | . . . . Slashing . | . . . . Piercing . | . . . . Sneak Attacks . | . . . . Combat Hostiles . | . . . . Follow-up Attacks . | . . . . Damage Inflicted 630 | . 176 143 311 Guns 630 | . 176 143 311 Cannons . | . . . . Explosions . | . . . . Melee . | . . . . Ramming . | . . . . Kinetic 575 | . 121 143 311 Thermal 55 | . 55 . . Explosive . | . . . . Electromagnetic . | . . . . Impact . | . . . . Slashing . | . . . . Piercing . | . . . . Highest Corruption . | . . . . Average Corruption . | . . . . Corruption Purged . | . . . . Corruption Blocked . | . . . . Overload Shots . | . . . . Overflow Damage . | . . . . Projectiles . | . . . . Explosions . | . . . . Melee . | . . . . Knockbacks . | . . . . Impact . | . . . . Kinetic . | . . . . Secondary . | . . . . Self-Inflicted Damage . | . . . . Shots . | . . . . Rammed . | . . . . Targets Rammed . | . . . . Kicked . | . . . . Crushed . | . . . . Highest Temperature 36 | . 36 . . Average Temperature 14 | . 14 . . Received Heat Transfer 36 | . 36 . . Siege Activations . | . . . . Robots Corrupted . | . . . . Combat Hostiles . | . . . . Parts Fried . | . . . . Impact Corruptions . | . . . . Robots Melted . | . . . . Combat Hostiles . | . . . . Parts Melted . | . . . . Heat Transferred 125 | . 125 . . Parts Sabotaged . | . . . . Parts Stolen . | . . . . Parts Stripped . | . . . . Power Chain Reactions . | . . . . Missiles Intercepted . | . . . . Alert | -11 -10 -10 -10 ------- Run | Scr Mat Min Exi Peak Influence 138 | . 138 111 . Initial 53 | . . 53 . Average 74 | . 57 101 . Maximum Alert Level . | . . . . Low Security (%) 100 | 100 100 100 . Level 1 . | . . . . Level 2 . | . . . . Level 3 . | . . . . Level 4 . | . . . . Level 5 . | . . . . High Security . | . . . . Max Security . | . . . . Squads Dispatched 2 | . 2 . . Investigation 1 | . 1 . . Extermination . | . . . . Reinforcement 1 | . 1 . . Assault . | . . . . Garrison . | . . . . Intercept . | . . . . Searches Triggered . | . . . . Construction Impeded . | . . . . Haulers Reinforced . | . . . . Active Scanning Responses . | . . . . Cargo Convoy Interrupts . | . . . . Stealth | -11 -10 -10 -10 --------- Run | Scr Mat Min Exi Distress Signals 1 | . 1 . . Communications Jammed . | . . . . Distress Signals . | . . . . Times Spotted 16 | . 8 3 5 Peak Tracking Total 8 | . 4 3 8 Tactical Retreats 1 | . . . 1 Traps | -11 -10 -10 -10 ------- Run | Scr Mat Min Exi Traps Triggered 1 | . 1 . . Indirectly . | . . . . Trap Hack Attempts . | . . . . Triggered . | . . . . Disarmed . | . . . . Reprogrammed . | . . . . Reused . | . . . . Traps Extracted . | . . . . Installed . | . . . . Triggered . | . . . . Power Sources Rigged 2 | . . . 2 Exploded 2 | . . . 2 Machines | -11 -10 -10 -10 ---------- Run | Scr Mat Min Exi Machines Disabled 1 | . . . 1 Max in Single Turn 1 | . . . 1 Machines Sabotaged . | . . . . Garrisons Compromised . | . . . . Overloaded Fab Kills . | . . . . Hacking | -11 -10 -10 -10 --------- Run | Scr Mat Min Exi Machines Accessed 1 | . 1 . . Terminals 1 | . 1 . . Fabricators . | . . . . Repair Stations . | . . . . Recycling Units . | . . . . Scanalyzers . | . . . . Garrison Access . | . . . . Total Hacks 2 | . 2 . . Successful 1 | . 1 . . Failed 1 | . 1 . . Catastrophic 1 | . 1 . . Database Lockouts . | . . . . Manual 1 | . . . 1 Terminals 2 | . 2 . . Fabricators . | . . . . Repair Stations . | . . . . Recycling Units . | . . . . Scanalyzers . | . . . . Garrison Access . | . . . . Terminal Hacks 1 | . 1 . . Prototype ID Bank 1 | . 1 . . Fabricator Hacks . | . . . . Repair Station Hacks . | . . . . Recycling Unit Hacks . | . . . . Scanalyzer . | . . . . Garrison Access Hacks . | . . . . Unauthorized Hacks . | . . . . Terminals . | . . . . Fabricators . | . . . . Repair Stations . | . . . . Recycling Units . | . . . . Scanalyzers . | . . . . Garrison Access . | . . . . Data Cores Recovered . | . . . . Used . | . . . . Hacking Detections 1 | . 1 . . Full Trace Events . | . . . . Feedback Events . | . . . . Feedback Blocked . | . . . . Robot Schematics Acquired . | . . . . Robots Built . | . . . . Authchips . | . . . . Time . | . . . . Total Robot Build Rating . | . . . . Part Schematics Acquired . | . . . . Parts Built . | . . . . Authchips . | . . . . Time . | . . . . Total Part Build Rating . | . . . . Parts Repaired . | . . . . Time . | . . . . Parts Recycled . | . . . . Recycled Matter . | . . . . Retrieved Matter . | . . . . Retrieved Components . | . . . . Parts Scanalyzed . | . . . . Part Schematics Acquired . | . . . . Parts Damaged . | . . . . Bothacking | -11 -10 -10 -10 ------------ Run | Scr Mat Min Exi Used RIF Installer . | . . . . Robots Hacked . | . . . . Non-combat . | . . . . Combat . | . . . . Robot Hacks Applied . | . . . . Relay Couplers Released . | . . . . Fabnet Peak Effective % . | . . . . Robots Rewired . | . . . . Allies Hacked . | . . . . Hacks Repelled . | . . . . Allies | -11 -10 -10 -10 -------- Run | Scr Mat Min Exi Total Allies 5 | . . 5 . Largest Group 4 | . . 4 4 Highest-Rated Group 80 | . . 80 80 Highest-Rated Ally 31 | . . 31 31 Total Orders 2 | . . . 2 STAY 2 | . . . 2 Ally Attacks 70 | . . 9 61 Total Damage 1130 | . . 71 1059 Kills 5 | . . 1 4 Allies Corrupted . | . . . . Allies Melted . | . . . . Turrets Deployed 3 | . . . 3 Intel | -11 -10 -10 -10 ------- Run | Scr Mat Min Exi Robot Analysis Total . | . . . . Derelict Logs Recovered . | . . . . Drone Launches . | . . . . Drone Recoveries . | . . . . Exploration | -11 -10 -10 -10 ------------- Run | Scr Mat Min Exi Turns Passed 1381 | 48 181 251 901 Spaces Moved 754 | 29 83 138 504 Core 14 | 4 . . 10 Treads 740 | 25 83 138 494 Legs . | . . . . Wheels . | . . . . Hover . | . . . . Flight . | . . . . Fastest Speed 50 | 50 160 160 100 Average Speed 158 | 144 160 160 159 Slowest Speed 160 | 160 160 160 160 Overloaded Moves . | . . . . Propulsion Burnouts . | . . . . Robots Hopped . | . . . . Cave-ins Triggered . | . . . . Exploration Rate (%) 30 | 3 24 39 55 Regions Visited 3 Branch Regions 2 Pre-discovered Areas . | . . . . Known Exits Taken . | . . . . Unknown Exits Taken 3 | 1 1 1 . Scrap Searched . | . . . . Spaces Dug . | . . . . Terrain Destroyed . | . . . . Melee . | . . . . Projectile . | . . . . AOE . | . . . . Terrain Rammed . | . . . . Walls Destroyed . | . . . . Machines Disabled . | . . . . Actions | -11 -10 -10 -10 --------- Run | Scr Mat Min Exi Total 857 | 33 108 148 568 Wait 7 | . 5 . 2 Move 751 | 28 82 137 504 Hop . | . . . . Pick Up 18 | . 7 1 10 Fast Attach 7 | 5 2 . . Attach 4 | . . . 4 Detach . | . . . . Swap 3 | . 1 . 2 Drop 12 | . . . 12 Fire 53 | . 11 10 32 Melee . | . . . . Ram . | . . . . Kick . | . . . . Crush . | . . . . Escape Stasis . | . . . . Rewire . | . . . . Trap 2 | . . . 2 Miscellaneous . | . . . . Route ------- -11/Scrapyard -10/Materials -10/Mines (discovered 2 exits: [*Mat] / *Exi) -10/Exiles History --------- Turn | Location | Event 22 | -11/Scrapyard | Discovered new exit (range 16) 49 | -11/Scrapyard | Entered Materials 199 | -10/Materials | Discovered new exit (range 15) 230 | -10/Materials | Entered Mines 234 | -10/Mines | Assisted by bots powering up and referring to "LRC-V3" 317 | -10/Mines | Build established: Mutant 346 | -10/Mines | Discovered new exit (range 4) 474 | -10/Mines | Deemed a non-threat by the Exiles lab entrance 474 | -10/Mines | Discovered new exit (range 5) 481 | -10/Mines | Entered Exiles 481 | -10/Exiles | Accompanied by 4 allies 511 | -10/Exiles | Led the pair of lost Derelicts to a safe place 518 | -10/Exiles | Met 8R-AWN 547 | -10/Exiles | Met EX-HEX 625 | -10/Exiles | Met EX-DEC 686 | -10/Exiles | Met EX-BIN 709 | -10/Exiles | Aligned with FarCom system 710 | -10/Exiles | Given EX-Vault access code 750 | -10/Exiles | Opened EX-Vault 757 | -10/Exiles | Found Deploy-a-Sentry 759 | -10/Exiles | Found Deploy-a-Sentry 762 | -10/Exiles | Found Deploy-a-Sentry 766 | -10/Exiles | Found Prototype Device 801 | -10/Exiles | Warned to stay clear of 0b10 Research branches 838 | -10/Exiles | DAS Turret deployed 842 | -10/Exiles | DAS Turret deployed 847 | -10/Exiles | DAS Turret deployed 913 | -10/Exiles | Found Prototype Storage 1035 | -10/Exiles | Identified PSU Rigger 1245 | -10/Exiles | Attacked by the Exiles 1245 | -10/Exiles | Allies destroyed EX-BIN 1248 | -10/Exiles | Allies destroyed EX-HEX 1315 | -10/Exiles | Core integrity fell below 50% 1322 | -10/Exiles | Core integrity fell below 20% 1382 | -10/Exiles | Destroyed by DAS Turret with DAS Cannon Last Messages --------------- 01325_ Trooper 1b suffers critical hit (Destroy). 01325_ Trooper 1b destroyed. 01325_ HV Slug penetrates Machine. 01327_ Acquired 50 matter. 01329_ Penetrated by HV Slug. 01334_ Ion Engine destroyed. 01338_ Penetrated by HV Slug. 01341_ Destroyed Prototype Protection. 01341_ Penetrated by HV Slug. 01345_ HV Slug penetrates Wall. 01345_ HV Slug penetrates Machine. 01350_ Penetrated by HV Slug. 01358_ Critical hit (Destroy). 01358_ Lgt. Treads destroyed. 01362_ Penetrated by HV Slug. 01367_ HV Slug penetrates Wall. 01371_ Penetrated by HV Slug. 01376_ Assault Rifle destroyed. 01378_ Acquired 50 matter. 01381_ Penetrated by HV Slug. Map ----- +----------------------------------------------------+ | ????????????????????????????# #?#"""""""#????? | | ????????????????????????????# #?#"""""""#????? | | ???????????????????????????## ###"" """"#????? | | ???????????????????????????#" """"#????? | | ???????????????????????????#" !! """#????? | | ???????????????????????????#" *!!"""#????? | | ???????????????????????????#" !=%%"""#????? | | ???????????????????????????#" =!!"""#????? | | ???????????????????????????#" !! """#????? | | ???????????????????????????## """"????? | | ????????????????????????????# """#????? | | ??????????????" ????????????#" "X" """"????? | | ??????????????" ???????????#" """ #????? | | ????????????? ???????????#" """""""""#????? | | ??????????????" ??????????##" ###########????? | | ??????????????# #????????## " #??????????????? | | ????????????### ##??######" #??????????????? | | ?????"""#####X# #"###"""""" ##?????????????? | | ??? """""" " " ##???########## | | ??? "" """ #####""""""""" | | ?? " " % " """ """ | | ??? "" " | | ???# " " | | ????# " | | ?????# % g%* %" | | ??????#" % @ % [ %% | | ??????#""" % % """ !*! | | ?????##" ###### !%! | | ?????#"" ""##????##### !!! | | ????##""" """##?????????## % % ! | | ????#"" """##???????????#"" | | ????#""" ""#????????????#"" % | | ????#"" * ##????????????""" | | ????#""" #?????????"" | | ????#"" ?????" | | ????##"" ??? | | ?????#"""" ??? | | ?????## ?? " | | ??????#" " ?? "" """ ** | | ??????#"""" ""????##""" " " ""#" | | ??????#"" ""#???????####""" """##""" | | ???????" """"#???????????###""""??#### | | ????????"" ""???????????????###???????? | | ????????? "??????????????????????????? | | ?????????" ""???????????????????????????? | | ?????????""" ??????????????????????????????? | | ???????????""" ????????????????????????????????? | | ?????????????????????????????????????????????????? | | ?????????????????????????????????????????????????? | | ?????????????????????????????????????????????????? | +----------------------------------------------------+ Best States ------------- Heat Dissipation 25 Energy Generation 10 Energy Capacity 250 Matter Stores 119 Matter Capacity 300 Sight Range 16 Terrain Scan Density 10 Armor Coverage 150 Evasion (%) 40 Recoil Reduction 2 Item Schematics ----------------- None Robot Schematics ------------------ None Fabricated ------------ Nothing Alien Tech Used ----------------- None Achievements -------------- None Challenges ------------ None Game ------ Seed LinearAdvancedSteel Manual? 1 Play Time 00:08:52 Cumulative 257.4 hours Start 2022.04.19 @ 17:37:34 End 2022.04.19 @ 18:10:13 Sessions 1 Manual Loads 0 Difficulty Rogue Special Mode None Game No. 133 Rogue 129 Adventurer 0 Explorer 4 Win Type - Total 15 Types 4/0/2/3/1/2/3/0/0 Lore% 75 Gallery% 80 Achievement% 73 Wizard Run 0 Options --------- ASCII 0 Keyboard 0 Movement Mouse Keybinds 0 Fullscreen 1 Font 18/SmallcapsGlow Map View 76x50 Tactical HUD 1 Map Filters NONE Filters NONE Steam 1 RUN: 39467f53-6963-4bd8-bd6a-3d79de6b3e16